Cogmind - Beta 16.1 *** ADVENTURER MODE // 2026.02.19 @ 14:35:56 Player: Gder Result: Destroyed by 8F-949(R) with Subdweller Laser Performance ------------- Evolutions (0) 0 Regions Visited (2) 400 Robots Destroyed (29) 145 Value Destroyed (558) 558 Prototype IDs (0) 0 Alien Tech Used (0) 0 Bonus (0) 0 TOTAL SCORE: 1103 Bonus ------- None Cogmind --------- Core Integrity 0/250 Matter 294/300 Energy 200/200 System Corruption 0% Temperature Cool (6) Movement Rolling (120) Ox1 Location -10/Subcaves Parts ------- > --- POWER (1) -------- Subdweller Power Source > --- PROPULSION (2) --- Light Treads Subdweller Monowheel > --- UTILITY (2) ------ Large Storage Unit Subdweller Optics > --- WEAPON (2) ------- Subdweller Beam Cannon Assault Rifle > --- INVENTORY (15) --- Ion Engine Subdweller Power Source Wheel Wheel Subdweller Monowheel Subdweller Monowheel Heat Sink Medium Storage Unit Medium Matter Pod (100) Large Matter Pod (150) Subdweller Laser Subdweller Beam Cannon Light Assault Rifle Subdweller Shrapnel Launcher Mining Laser Peak State ------------ > --- POWER ------------ Subdweller Power Source > --- PROPULSION ------- Light Treads Subdweller Monowheel > --- UTILITY ---------- Large Storage Unit Subdweller Optics > --- WEAPON ----------- Subdweller Beam Cannon Assault Rifle > --- INVENTORY -------- Ion Engine Subdweller Power Source Aluminum Leg Wheel Wheel Subdweller Monowheel Heat Sink Medium Storage Unit Medium Matter Pod Large Matter Pod Subdweller Laser Subdweller Beam Cannon Light Assault Rifle Subdweller Shrapnel Launcher Mining Laser [Rating: 13] Favorites ----------- Power Ion Engine Engine Ion Engine Propulsion Light Treads Treads Light Treads Wheel Subdweller Monowheel Utility Large Storage Unit Device Seismic Detector Storage Large Storage Unit Weapon Light Assault Rifle Energy Gun Small Laser Energy Cannon Subdweller Beam Cannon Ballistic Gun Light Assault Rifle Special Weapon Mining Laser Build | -11 -10 -10 ------- Run | Yrd Mat Sub Slots Evolved . | . . . Power . | . . . Propulsion . | . . . Utility . | . . . Weapon . | . . . Parts Attached 19 | 7 5 7 Power 3 | 1 . 2 Engine 3 | 1 . 2 Core . | . . . Reactor . | . . . Propulsion 4 | 2 . 2 Treads 3 | 2 . 1 Leg . | . . . Wheel 1 | . . 1 Hover . | . . . Flight . | . . . Utility 5 | 2 1 2 Device 3 | 1 . 2 Storage 2 | 1 1 . Processor . | . . . Hackware . | . . . Protection . | . . . Artifact . | . . . Weapon 7 | 2 4 1 Energy Gun 1 | 1 . . Energy Cannon 1 | . . 1 Ballistic Gun 4 | 1 3 . Ballistic Cannon . | . . . Launcher . | . . . Special Weapon 1 | . 1 . Impact Weapon . | . . . Slashing Weapon . | . . . Piercing Weapon . | . . . Special Melee Weapon . | . . . Unidentified Prototypes . | . . . Parts Lost 4 | . . 4 Power 1 | . . 1 Propulsion 2 | . . 2 Utility 1 | . . 1 Weapon . | . . . Highest Loss Streak 3 | . . 3 To Critical Strikes 1 | . . 1 Average Backups 11 | 4 10 14 Power 1 | . 1 1 Propulsion 4 | 2 4 4 Utility 2 | . 1 4 Weapon 3 | . 3 4 Tool/Special . | . . . Unused Backups 19 | . 3 16 Power 2 | . . 2 Propulsion 7 | . 1 6 Utility 5 | . 1 4 Weapon 5 | . 1 4 Tool/Special . | . . . Average Slot Usage (%) 98 | . 100 96 Engine 13 | . 14 12 Treads 24 | . 28 18 Wheel 3 | . . 7 Device 13 | . 14 13 Storage 14 | . 14 14 Energy Cannon 2 | . . 6 Ballistic Gun 23 | . 25 20 Special Weapon 1 | . 1 1 Peak Build Rating 13 | 7 8 13 Average Rating 8 | 5 7 10 On Entrance 5 | . 7 8 Avg Prop Armor Cover (%) 13 | . . 13 Naked Turns . | . . . Heaviest Build 37 | 13 29 37 Greatest Support 40 | 40 40 40 Greatest Overweight (x) 3 | 3 . 1 Average Overweight (x) . | . . . Largest Inventory Capacity 15 | 8 15 15 Average Capacity 13 | 7 12 15 Most Carried 15 | 7 14 15 Average Carried 11 | 4 10 14 Final Capacity 15 | 8 15 15 Final Carried 15 | 7 14 15 Class Distribution -------------------- 80% | Mutant 19% | Scavenger-Mutant Dominant Class ---------------- Mutant | -10/Materials Scavenger-Mutant | -10/Subcaves Resources | -11 -10 -10 ----------- Run | Yrd Mat Sub Matter Collected 803 | 258 330 215 Remotely . | . . . Salvage Created 870 | 13 591 266 Parts 65 | 3 47 15 Haulers Intercepted 2 | . 2 . Recyclers Shooed . | . . . Parts Field Recycled . | . . . Retrieved Matter . | . . . Parts Self-Destructed 13 | . . 13 Prevented . | . . . Parts Restored . | . . . Kills | -11 -10 -10 ------- Run | Yrd Mat Sub Combat Hostiles Destroyed 18 | . 13 5 Guns 16 | . 13 3 Cannons 2 | . . 2 Classes Destroyed 9 | 1 6 2 Worker 1 | . 1 . Tunneler 1 | 1 . . Hauler 2 | . 2 . Recycler 2 | . 2 . Turret 2 | . . 2 Watcher 3 | . 3 . Swarmer 9 | . 9 . Grunt 4 | . 4 . Subdweller 5 | . . 5 Best Kill Streak 4 | 1 4 2 Combat Bots Only 3 | . 3 2 Max Kills in Single Turn 2 | 1 2 1 Gunslinging 1 | . 1 . Exploded . | . . . Melee . | . . . Uniques/NPCs Destroyed . | . . . Combat | -11 -10 -10 -------- Run | Yrd Mat Sub Hostile Shots Fired 179 | . 38 141 Missed 67 | . 10 57 Hits 112 | . 28 84 Projectile 112 | . 28 84 Critical Strikes 2 | . . 2 Damage Taken 925 | . 186 739 Core 254 | . 20 234 Absorbed by Shields . | . . . Ignored by Resistances 277 | . 62 215 Core Remaining (%) 100 | 100 . . Volleys Fired 100 | 5 45 50 Largest 2 | 2 2 2 Hottest 100 | 60 100 100 Shots Fired 175 | 10 84 81 Gun 155 | 10 80 65 Cannon 11 | . . 11 Launcher . | . . . Special 9 | . 4 5 Kinetic 147 | 5 77 65 Thermal 28 | 5 7 16 Explosive . | . . . Electromagnetic . | . . . Robot Hit Streak 37 | 7 23 37 Robot Miss Streak 2 | 1 2 1 Penetration Max . | . . . Secondary Targets 2 | . 2 . Max Gunslinging Chain 1 | . 1 . Shots Hit Robots 135 | 8 63 64 Core Hits 52 | 2 34 16 Critical Kills . | . . . Critical Parts Destroyed . | . . . Critical Strikes 1 | . . 1 Destroy 1 | . . 1 Melee Attacks . | . . . Impact . | . . . Slashing . | . . . Piercing . | . . . Sneak Attacks . | . . . Combat Hostiles . | . . . Follow-up Attacks . | . . . Damage Inflicted 1531 | 79 608 844 Guns 1276 | 79 608 589 Cannons 255 | . . 255 Explosions . | . . . Melee . | . . . Ramming . | . . . Kinetic 1190 | 26 575 589 Thermal 341 | 53 33 255 Explosive . | . . . Electromagnetic . | . . . Impact . | . . . Slashing . | . . . Piercing . | . . . Highest Corruption . | . . . Average Corruption . | . . . Corruption Purged . | . . . Corruption Blocked . | . . . Overload Shots . | . . . Overflow Damage 5 | . . 5 Projectiles 5 | . . 5 Explosions . | . . . Melee . | . . . Knockbacks . | . . . Impact . | . . . Kinetic . | . . . Secondary . | . . . Self-Inflicted Damage . | . . . Shots . | . . . Rammed . | . . . Targets Rammed . | . . . Kicked . | . . . Crushed . | . . . Highest Temperature 219 | 40 40 219 Average Temperature 29 | 20 12 96 Received Heat Transfer 550 | . 48 502 Effects 1 | . . 1 Energy Bleed 1 | . . 1 Siege Activations . | . . . Martial Activations . | . . . Shielding Activations . | . . . Robots Disrupted . | . . . Combat Hostiles . | . . . Robots Corrupted . | . . . Combat Hostiles . | . . . Parts Fried . | . . . Impact Corruptions . | . . . Robots Melted . | . . . Combat Hostiles . | . . . Parts Melted 1 | . . 1 Heat Transferred 533 | 125 75 333 Parts Sabotaged . | . . . Parts Stolen . | . . . Parts Stripped . | . . . Power Chain Reactions . | . . . Alert | -11 -10 -10 ------- Run | Yrd Mat Sub Maximum Alert Level . | . . . Low Security (%) 100 | 100 100 . Level 1 . | . . . Level 2 . | . . . Level 3 . | . . . Level 4 . | . . . Level 5 . | . . . High Security . | . . . Max Security . | . . . Peak Influence 119 | 5 119 . Initial . | . . . Average 32 | . 35 . Influence Increases 619 | 5 409 205 Destroy 0b10 Robot/C 300 | . 260 40 Destroy 0b10 Robot/NC 45 | 5 40 . Destroy Leader 50 | . 50 . Successful Hack 26 | . 26 . Select Force Hacks 30 | . 30 . Destroy Structure 3 | . 3 . Lose Combat Pursuer 165 | . . 165 Influence Decreases 584 | 5 409 170 Time Decay 574 | 5 409 160 Lost Part 10 | . . 10 Squads Dispatched 2 | . 2 . Investigation 2 | . 2 . Extermination . | . . . Reinforcement . | . . . Assault . | . . . Garrison . | . . . Intercept . | . . . Searches Triggered . | . . . Construction Impeded . | . . . Haulers Reinforced . | . . . Active Scanning Responses . | . . . Cargo Convoy Interrupts . | . . . Stealth | -11 -10 -10 --------- Run | Yrd Mat Sub Distress Signals 1 | . 1 . Communications Jammed . | . . . Distress Signals . | . . . Times Spotted 38 | . 19 19 Peak Tracking Total 4 | . 4 3 Tactical Retreats 4 | . . 4 Traps | -11 -10 -10 ------- Run | Yrd Mat Sub Traps Triggered 1 | . 1 . Indirectly . | . . . Trap Hack Attempts . | . . . Triggered . | . . . Disarmed . | . . . Reprogrammed . | . . . Reused . | . . . Traps Extracted . | . . . Installed . | . . . Triggered . | . . . Machines | -11 -10 -10 ---------- Run | Yrd Mat Sub Machines Disabled 1 | . . 1 Max in Single Turn 1 | . . 1 Machines Repaired . | . . . Machines Dismantled . | . . . Machines Sabotaged . | . . . Overloaded Fab Kills . | . . . Hacking | -11 -10 -10 --------- Run | Yrd Mat Sub Machines Accessed 8 | . 8 . Terminals 6 | . 6 . Fabricators . | . . . Repair Stations . | . . . Recycling Units 2 | . 2 . Scanalyzers . | . . . Garrison Access . | . . . Total Hacks 21 | . 21 . Successful 12 | . 12 . Failed 9 | . 9 . Catastrophic 2 | . 2 . Database Lockouts . | . . . Manual 16 | . 16 . Terminals 16 | . 16 . Fabricators . | . . . Repair Stations . | . . . Recycling Units 5 | . 5 . Scanalyzers . | . . . Garrison Access . | . . . Terminal Hacks 1 | . 1 . Robot Analysis 1 | . 1 . Fabricator Hacks . | . . . Repair Station Hacks . | . . . Recycling Unit Hacks 3 | . 3 . Process 1 | . 1 . Report Inventory 1 | . 1 . Retrieve Matter 1 | . 1 . Scanalyzer . | . . . Garrison Access Hacks . | . . . Unauthorized Hacks 8 | . 8 . Terminals 7 | . 7 . Botnet 2 | . 2 . Skim 5 | . 5 . Fabricators . | . . . Repair Stations . | . . . Recycling Units 1 | . 1 . Tunnel 1 | . 1 . Scanalyzers . | . . . Garrison Access . | . . . Data Cores Recovered . | . . . Used . | . . . Hacking Detections 7 | . 7 . Full Trace Events . | . . . Feedback Events . | . . . Feedback Blocked . | . . . Robot Schematics Acquired . | . . . Robots Built . | . . . Authchips . | . . . Time . | . . . Total Robot Build Rating . | . . . Part Schematics Acquired . | . . . Parts Built . | . . . Authchips . | . . . Time . | . . . Total Part Build Rating . | . . . Part Studies Acquired . | . . . Parts Repaired . | . . . Time . | . . . Parts Recycled . | . . . Recycled Matter 208 | . 208 . Retrieved Matter 266 | . 266 . Retrieved Components . | . . . Parts Scanalyzed . | . . . Part Schematics Acquired . | . . . Parts Damaged . | . . . Bothacking | -11 -10 -10 ------------ Run | Yrd Mat Sub Used RIF Installer . | . . . Robots Hacked . | . . . Non-combat . | . . . Combat . | . . . Robot Hacks Applied . | . . . Relay Couplers Released . | . . . Fabnet Peak Effective % . | . . . Robots Rewired . | . . . Allies Hacked . | . . . Hacks Repelled . | . . . Allies | -11 -10 -10 -------- Run | Yrd Mat Sub Total Allies . | . . . Largest Group . | . . . Highest-Rated Group . | . . . Highest-Rated Ally . | . . . Total Orders . | . . . Ally Attacks . | . . . Total Damage . | . . . Kills . | . . . Allies Corrupted . | . . . Allies Melted . | . . . Intel | -11 -10 -10 ------- Run | Yrd Mat Sub Active Infowar (turns) 1980 | 39 1176 765 Optics 516 | . . 516 Seismic 1464 | 39 1176 249 Robot Analysis Total 1 | . 1 . Derelict Logs Recovered 1 | . . 1 Drone Launches . | . . . Drone Recoveries . | . . . Exploration | -11 -10 -10 ------------- Run | Yrd Mat Sub Turns Passed 2089 | 118 1176 795 Spaces Moved 1130 | 56 627 447 Core 4 | 4 . . Treads 823 | 52 627 144 Legs . | . . . Wheels 303 | . . 303 Hover . | . . . Flight . | . . . Fastest Speed 50 | 50 160 120 Average Speed 150 | 156 160 135 Slowest Speed 240 | 200 160 240 Overloaded Moves . | . . . Propulsion Burnouts . | . . . Robots Hopped . | . . . Potential Cave-ins . | . . . Cave-ins Triggered . | . . . Exploration Rate (%) 42 | 4 98 25 Regions Visited 2 Branch Regions 1 Pre-discovered Areas 2 | . 1 1 Known Exits Taken 1 | . 1 . Unknown Exits Taken 1 | 1 . . Scrap Searched . | . . . Spaces Dug 3 | . 3 . Terrain Destroyed 4 | . 4 . Melee . | . . . Projectile 4 | . 4 . AOE . | . . . Terrain Rammed . | . . . Walls Destroyed . | . . . Machines Disabled . | . . . Actions | -11 -10 -10 --------- Run | Yrd Mat Sub Total 1344 | 74 720 550 Wait 56 | . 29 27 Move 1128 | 55 626 447 Hop . | . . . Pick Up 24 | 7 9 8 Fast Attach 12 | 7 1 4 Attach 1 | . . 1 Detach 2 | . 1 1 Swap 8 | . 4 4 Drop 13 | . 5 8 Fire 100 | 5 45 50 Melee . | . . . Ram . | . . . Kick . | . . . Crush . | . . . Escape Stasis . | . . . Rewire . | . . . Trap . | . . . Miscellaneous . | . . . Route ------- -11/Scrapyard -10/Materials (discovered 5 exits: [*Mat x3] / [*Min] / *Sub) -10/Subcaves (discovered 3 exits: *Mat x2 / *Rec) History --------- Turn | Location | Event 31 | -11/Scrapyard | Discovered new exit (range 15) 119 | -11/Scrapyard | Entered Materials 315 | -10/Materials | Build established: Mutant 322 | -10/Materials | Discovered new exit (range 16) 619 | -10/Materials | Derelicts attacked the area 642 | -10/Materials | Discovered new exit (range 10) 805 | -10/Materials | Learned 2 Mines zone layouts 877 | -10/Materials | Discovered new exit (range 4) 892 | -10/Materials | Identified exit to Subcaves 938 | -10/Materials | Learned location of 2 exits from Subcaves 963 | -10/Materials | Discovered new exit (range 16) 967 | -10/Materials | Loaded intel: 1 repair station location 1008 | -10/Materials | Learned Storage garrison access intel 1295 | -10/Materials | Entered Subcaves 1295 | -10/Subcaves | Learned location of 1 exit from Materials 1296 | -10/Subcaves | Approached by a straggling Scientist 1296 | -10/Subcaves | Identified exit to Recycling 1297 | -10/Subcaves | Identified exit to Materials 1491 | -10/Subcaves | Learned location of Zion (-6) 1491 | -10/Subcaves | Met a Zionite searching for "candidates" 1577 | -10/Subcaves | Core integrity fell below 50% 1591 | -10/Subcaves | Lost 3 parts (1p1n1u) 1820 | -10/Subcaves | Core integrity fell below 20% 1991 | -10/Subcaves | Build established: Scavenger-Mutant 2071 | -10/Subcaves | Shifting Twisted Machinery released Piercing Trap 2075 | -10/Subcaves | Shifting Twisted Machinery released Scrap Shield 2090 | -10/Subcaves | Destroyed by 8F-949(R) with Subdweller Laser Last Messages --------------- 01846_ Acquired 33 matter. 01847_ Autobeam Turret destroyed. 01848_ Acquired 3 matter. 01866_ Dropped Sub. Shrapnel Launcher. 01866_ Acquired Sub. Shrapnel Launcher. 01941_ Critical hit (Destroy). 01941_ Lgt. Treads destroyed. 01946_ Critical hit (Meltdown: +220). 01947_ Overheating: Energy bleed (-11). 01947_ BF-2RH(R) destroyed. 01956_ Acquired 17 matter. 01958_ OS-MNA(R) destroyed. 01962_ Dropped Broken Sub. Power Source. 01965_ Acquired Sub. Power Source. 01969_ Acquired 13 matter. 01970_ Dropped Aluminum Leg. 01972_ Acquired Sub. Monowheel. Piercing Trap falls loose from the Twisted Machinery. Scrap Shield falls loose from the Twisted Machinery. 02082_ 8F-949(R): "SUBMAD!" Map ----- +----------------------------------------------------+ | ?????????????????????????????????????????????????? | | ?????????????????????????????????????????????????? | | ?????????????????????????????????????????????????? | | ?????????????????????????????????????????????????? | | ?????????????????????????????????????????????????? | | ?????????????????????????????????????????????????? | | ?????????????????????????????????????????????????? | | ?????????????????????????????????????????????????? | | ?????????????????????????????????????????????????? | | ?????????????????????????????????????????????????? | | ?????????????????????????????????????????????????? | | ##??????????????????????????####?????????????????? | | ####??###?????????????????# #?????????????????? | | ##?# #####???????????## ??????????????????? | | #?# ##?????????# #??????????????????? | | ### #??####??? ##?????????????????? | | # #???# ##?? #?????????????????? | | #????? ##?# ??????? #?????????? | | ##????# #? # ?????## # #???????? | | ## ##???# ### #???? #???????? | | ### ##?## ## #?##? #???????? | | ###?# ### "" "" ## # R ???????? | | ##??# """"""! ??????? | | ##?## "" & #?????????? | | ##?# #??????????????????? | | #### ### @ ###??????????????????? | | ### ##?# ##????????????????????? | | ### ########??# #?????????????????????? | | "#?### #?????????#########?????????????????????? | | "#???# ##???????????????????????????????????????? | | #???# #????????????????????????????????????????? | | #???# #????????????????????????????????????????? | | #???## #????????????????????????????????????????? | | ##????##????????????????????????????????????????? | | ##??#####??????????????????????????????????????? | | #### #??????????????????????????????????????? | | #??????????????????????????????????????? | | ##??????????????????????????????????????? | | #???????????????????????????????????????? | | ## #???????????????????????????????????????? | | ### #???????????????????????????????????????? | | ### ##???????????????????????????????????????? | | #?# #????????????????????????????????????????? | | #?## ##???????????????????????????????????????? | | ! #?# #???????????????????????????????????????? | | =##?# #???????????????????????????????????????? | | %##?## ##???????????????????????????????????????? | | &!#### ##??????????????????????????????????????? | | #??????????????????????????????????????? | | # #??????????????????????????????????????? | +----------------------------------------------------+ Best States ------------- Heat Dissipation 25 Energy Generation 15 Energy Capacity 250 Matter Stores 300 Matter Capacity 300 Sight Range 21 Terrain Scan Density 10 Resistance: KI 20 Resistance: TH 20 Resistance: EX 20 Resistance: EM 20 Resistance: I 20 Resistance: S 20 Resistance: P 20 Evasion (%) 40 Recoil Reduction 2 Offensive Hacking 10 Item Schematics ----------------- None Robot Schematics ------------------ None Fabricated ------------ Nothing Repaired ---------- Nothing Studied --------- None Alien Tech Used ----------------- None Achievements -------------- None Challenges ------------ None Game ------ Seed ThermoelectricLaunchMeganuke Manual? 0 Play Time 00:21:37 Cumulative 154.9 hours Start 2026.02.18 @ 14:16:27 End 2026.02.19 @ 14:35:56 Sessions 3 Manual Loads 0 Difficulty Adventurer Special Mode None Game No. 61 Rogue 0 Adventurer 57 Explorer 4 Win Type - Total 4 Types 4/0/0/0/0/0/0/0/0/0 Lore% 41 Gallery% 47 Achievement% 38 Wizard Run 0 Options --------- Layout 0 ASCII 0 Keyboard 1 Movement Numpad Keybinds 0 Fullscreen 1 Font 18/SmallcapsGlow Map View 76x50 Zoom Use 0% Tactical HUD 1 Map Filters NONE Filters NONE Steam 1 RUN: bf290432-dde1-4d79-8e1d-b66c23a11191